fUST/lending_fUST_20260630
["ID","MTS","AMOUNT","RATE_DAILY","PERIOD"]
[426749985,1782779442000,-500.0,0.00025727,2]
[426749983,1782779442000,-900.0,0.00025469,3]
[426749971,1782779442000,-568.29595773,0.0002541,2]
[426749969,1782779442000,-364.07348643,0.0002541,2]
[426749972,1782779442000,-500.0,0.00025467,2]
[426749967,1782779442000,-186.518827,0.00025034,2]
[426749979,1782779442000,-500.0,0.00025467,2]
[426749980,1782779442000,-517.04315636,0.00025467,2]
[426749976,1782779442000,-648.94257019,0.00025467,2]
[426749974,1782779442000,-500.0,0.00025467,2]
[426749999,1782779442000,-163.65475,0.0002812,2]
[426750004,1782779442000,-500.0,0.00028172,2]
[426750025,1782779442000,-500.0,0.00028172,2]
[426750007,1782779442000,-500.0,0.00028172,2]
[426750039,1782779442000,-1634.852288,0.00028173,7]
[426750040,1782779442000,-1044.82889494,0.00028173,7]
[426750036,1782779442000,-1634.852288,0.00028173,7]
[426750034,1782779442000,-151.0,0.00028173,7]
[426750032,1782779442000,-151.0,0.00028173,7]
[426750028,1782779442000,-500.0,0.00028172,2]
[426750030,1782779442000,-300.0,0.00028172,2]
[426750026,1782779442000,-500.0,0.00028172,2]
[426750001,1782779442000,-500.0,0.00028172,2]
[426750023,1782779442000,-500.0,0.00028172,2]
[426750019,1782779442000,-500.0,0.00028172,2]
[426750013,1782779442000,-500.0,0.00028172,2]
[426750021,1782779442000,-538.80215784,0.00028172,2]
[426750017,1782779442000,-500.0,0.00028172,2]
[426750015,1782779442000,-500.0,0.00028172,2]
[426750011,1782779442000,-500.0,0.00028172,2]
[426750009,1782779442000,-500.0,0.00028172,2]
[426750024,1782779442000,-500.0,0.00028172,2]
[426752574,1782779463000,168.19673012,0.0001595,7]
[426752678,1782779464000,631.24300856,0.0001595,7]
[426752760,1782779465000,631.24300856,0.00016269,7]
[426753090,1782779489000,-631.24300856,0.00016748,7]
[426753093,1782779506000,-631.24300856,0.00017226,7]
[426753094,1782779523000,-631.24300858,0.00017864,7]
[426753095,1782779539000,-202.88083221,0.0002067,2]
[426753100,1782779556000,-150.22350091,0.000225,2]
[426753101,1782779556000,200.0,0.00029448,120]
[426753106,1782779573000,-2845.76018688,0.00023899,2]
[426753110,1782779619000,-734.71188312,0.00013,2]
[426753115,1782779625000,-476.24127618,0.00013,2]
[426753117,1782779626000,-1212.84725304,0.00013,2]
[426753118,1782779627000,-227.92210038,0.00013,2]
[426753120,1782779628000,-558.20637963,0.00013,2]
[426753121,1782779629000,-256.91923441,0.00013,2]
[426753122,1782779631000,-248.3191758,0.00013,2]
[426753123,1782779632000,-457.79826719,0.00013,2]
[426753136,1782779645000,-500.0,0.0001287,2]
[426753135,1782779645000,-1311.01384491,0.0001287,2]
[426753137,1782779646000,-390.39998653,0.0001287,2]
[426753138,1782779647000,-290.07071826,0.0001287,2]
[426753139,1782779648000,-1418.85284174,0.0001287,2]
[426753140,1782779649000,-380.59503303,0.0001287,2]
[426753141,1782779650000,-255.95299437,0.0001287,2]
[426753142,1782779670000,200.0,0.0002913,120]
[426753161,1782779728000,192.0,0.00026843,120]
[426753166,1782779780000,-828.34947302,0.00012741,2]
[426753167,1782779781000,-339.91544316,0.00012741,2]
[426753168,1782779782000,-772.49986084,0.00012741,2]
[426753169,1782779783000,-500.0,0.00012741,2]
[426753170,1782779784000,-190.70224807,0.00012741,2]
[426753171,1782779785000,-214.29316179,0.00012741,2]
[426753172,1782779785000,-63.69697516,0.0001287,2]
[426753173,1782779786000,-227.27279226,0.0001287,2]
[426753174,1782779790000,200.0,0.00030135,120]
[426753175,1782779803000,-485.09989604,0.00012741,2]
[426753176,1782779839000,5000.0,0.0001251,2]
[426753178,1782779861000,4238.41028356,0.0001251,2]
[426753182,1782779998000,505.26292921,0.0001251,2]
[426753417,1782780552000,-250.14976654,0.000135,2]
[426753458,1782780634000,-433.45811007,0.000135,2]
[426753537,1782780638000,-364.07348643,0.00020697,2]
[426753568,1782780638000,-500.0,0.00027396,2]
[426753558,1782780638000,-3004.8104786,0.00025948,2]
[426753564,1782780638000,-2126.0,0.00027132,7]
[426753562,1782780638000,-186.0,0.00025975,2]
[426753557,1782780638000,-164.068075,0.00025917,2]
[426753555,1782780638000,-1066.8531834,0.00025848,2]
[426753553,1782780638000,-504.5356263,0.00025825,2]
[426753550,1782780638000,-291.66434462,0.00025671,2]
[426753546,1782780638000,-163.64,0.00025125,3]
[426753548,1782780638000,-188.422172,0.00025554,2]
[426753542,1782780638000,-172.75562245,0.00022266,5]
[426753544,1782780638000,-3595.37085,0.00024947,2]
[426753551,1782780638000,-1948.6854412,0.00025723,2]
[426753539,1782780638000,-568.29595773,0.00020697,2]
[426753540,1782780638000,-228.3456933,0.00022266,5]
[426753535,1782780638000,-1843.17330083,0.000135,2]
[426753572,1782780638000,-504.68256442,0.00027396,2]
[426753560,1782780638000,-2216.0,0.00025975,2]
[426753570,1782780638000,-500.0,0.00027396,2]
[426753566,1782780638000,-511.68797427,0.00027396,2]
[426753609,1782780638000,-500.0,0.0002817,2]
[426753607,1782780638000,-500.0,0.0002817,2]
[426753605,1782780638000,-500.0,0.0002817,2]
[426753601,1782780638000,-500.0,0.0002817,2]
[426753599,1782780638000,-500.0,0.0002817,2]
[426753586,1782780638000,-1419.125615,0.0002817,7]
[426753593,1782780638000,-1419.125615,0.0002817,7]
[426753603,1782780638000,-500.0,0.0002817,2]
[426753588,1782780638000,-1419.125615,0.0002817,7]
[426753597,1782780638000,-277.0463308,0.0002817,2]
[426753584,1782780638000,-500.0,0.00028154,7]
[426753590,1782780638000,-1419.125615,0.0002817,7]
[426753581,1782780638000,-558.55850572,0.00028154,2]
[426753579,1782780638000,-180.10695938,0.00028072,2]
[426753574,1782780638000,-503.08704721,0.00027396,2]
[426753576,1782780638000,-1541.50761106,0.00027827,2]
[426753595,1782780638000,-500.0,0.0002817,2]
[426753686,1782780639000,-151.0,0.00028173,7]
[426753679,1782780639000,-151.0,0.00028172,7]
[426753670,1782780639000,-151.0,0.00028172,7]
[426753674,1782780639000,-1419.125615,0.00028172,7]
[426753659,1782780639000,-151.0,0.00028172,7]
[426753668,1782780639000,-500.0,0.00028172,7]
[426753675,1782780639000,-1419.125615,0.00028172,7]
[426753661,1782780639000,-151.0,0.00028172,7]
[426753697,1782780639000,-151.0,0.00028174,7]
[426753666,1782780639000,-151.0,0.00028172,7]
[426753698,1782780639000,-151.0,0.00028174,7]
[426753699,1782780639000,-254.871037,0.00028174,7]
[426753681,1782780639000,-183.215144,0.00028173,7]
[426753690,1782780639000,-151.0,0.00028173,7]
[426753677,1782780639000,-1419.125615,0.00028172,7]
[426753692,1782780639000,-500.0,0.00028173,7]
[426753684,1782780639000,-151.0,0.00028173,7]
[426753694,1782780639000,-151.0,0.00028173,7]
[426753700,1782780639000,-151.0,0.00028174,7]
[426753672,1782780639000,-1419.125615,0.00028172,7]
[426753701,1782780639000,-151.0,0.00028458,7]
[426753702,1782780639000,-151.0,0.00028458,7]
[426753696,1782780639000,-151.0,0.00028174,7]
[426753664,1782780639000,-154.134529,0.00028172,7]
[426753631,1782780639000,-1748.3076336,0.00028172,2]
[426753657,1782780639000,-151.0,0.00028172,7]
[426753611,1782780639000,-500.0,0.0002817,2]
[426753613,1782780639000,-500.0,0.0002817,2]
[426753614,1782780639000,-622.33333393,0.0002817,2]
[426753616,1782780639000,-500.0,0.0002817,2]
[426753618,1782780639000,-170.616,0.00028171,18]
[426753621,1782780639000,-633.04341449,0.00028171,7]
[426753622,1782780639000,-151.0,0.00028171,7]
[426753624,1782780639000,-349.66152672,0.00028172,2]
[426753636,1782780639000,-275.00594506,0.00028172,2]
[426753638,1782780639000,-495.0107011,0.00028172,2]
[426753642,1782780639000,-1375.02972528,0.00028172,2]
[426753640,1782780639000,-880.01902418,0.00028172,2]
[426753644,1782780639000,-1978.0627616,0.00028172,2]
[426753629,1782780639000,-1118.9168855,0.00028172,2]
[426753626,1782780639000,-629.3907481,0.00028172,2]
[426753704,1782780639000,-151.0,0.00028458,7]
[426753646,1782780639000,-231.86380824,0.00028172,2]
[426753634,1782780639000,-151.0,0.00028172,7]
[426753632,1782780639000,-2515.04542939,0.00028172,2]
[426753648,1782780639000,-151.0,0.00028172,7]
[426753651,1782780639000,-151.777416,0.00028172,7]
[426753655,1782780639000,-151.0,0.00028172,7]
[426753653,1782780639000,-151.0,0.00028172,7]
[426753662,1782780639000,-361.92491318,0.00028172,2]
[426753706,1782780639000,-1419.125615,0.00028458,7]
[426753688,1782780639000,-151.0,0.00028173,7]
[426753710,1782780639000,-1419.125615,0.00028458,7]
[426753764,1782780639000,-151.0,0.00029159,7]
[426753768,1782780639000,-2040.16977431,0.0002916,2]
[426753770,1782780639000,-154.69,0.00029169,15]
[426753774,1782780639000,-5492.01703093,0.00029213,2]
[426753776,1782780639000,-294.66,0.00029213,7]
[426753778,1782780639000,-1419.125615,0.00029213,7]
[426753782,1782780639000,-1419.125615,0.00029213,7]
[426753772,1782780639000,-469.0,0.000292,2]
[426753779,1782780639000,-1419.125615,0.00029213,7]
[426753783,1782780639000,-1419.125615,0.00029213,7]
[426753785,1782780639000,-151.0,0.00029213,7]
[426753787,1782780639000,-154.69,0.00029219,15]
[426753789,1782780639000,-154.69,0.00029269,15]
[426753791,1782780639000,-192.841768,0.00029288,2]
[426753793,1782780639000,-152.96,0.00029293,15]
[426753795,1782780639000,-163.16,0.00029293,15]
[426753797,1782780639000,-180.10695934,0.00029293,2]
[426753801,1782780639000,-1419.125615,0.00029296,7]
[426753799,1782780639000,-1419.125615,0.00029296,7]
[426753712,1782780639000,-1419.125615,0.00028458,7]
[426753807,1782780639000,-1419.125608,0.00029296,7]
[426753810,1782780639000,-152.16138,0.00029296,7]
[426753814,1782780639000,-10344.17250804,0.00029296,2]
[426753766,1782780639000,-249.410238,0.00029159,7]
[426753758,1782780639000,-197.9,0.00029027,15]
[426753805,1782780639000,-1419.125615,0.00029296,7]
[426753752,1782780639000,-151.0,0.00029019,7]
[426753714,1782780639000,-436.8792906,0.00028458,2]
[426753718,1782780639000,-500.0,0.00028503,7]
[426753716,1782780639000,-180.10695934,0.00028479,2]
[426753720,1782780639000,-151.0,0.00028504,7]
[426753723,1782780639000,-152.0,0.00028595,7]
[426753726,1782780639000,-152.0,0.00028595,7]
[426753732,1782780639000,-152.0,0.00028595,7]
[426753728,1782780639000,-152.0,0.00028595,7]
[426753722,1782780639000,-163.718574,0.00028564,2]
[426753708,1782780639000,-1419.125615,0.00028458,7]
[426753736,1782780639000,-152.0,0.00028595,7]
[426753734,1782780639000,-152.0,0.00028595,7]
[426753742,1782780639000,-214.08960411,0.00028614,2]
[426753740,1782780639000,-284.0,0.00028595,7]
[426753756,1782780639000,-464.09,0.00029019,15]
[426753754,1782780639000,-154.69,0.00029019,15]
[426753750,1782780639000,-151.0,0.00029019,7]
[426753746,1782780639000,-186.0,0.00028975,2]
[426753760,1782780639000,-154.69,0.00029069,15]
[426753744,1782780639000,-180.10695934,0.00028886,2]
[426753730,1782780639000,-152.0,0.00028595,7]
[426753738,1782780639000,-152.0,0.00028595,7]
[426753748,1782780639000,-5701.11439402,0.00029,6]
[426753762,1782780639000,-154.69,0.00029119,15]
[426753984,1782780641000,-0.00421096,0.00025974,2]
[426754320,1782780643000,-389.42233947,0.00025974,2]
[426754679,1782780647000,-3330.03529037,0.00029296,2]
[426754676,1782780647000,-1419.80842843,0.00029296,2]
[426754674,1782780647000,-96.80680939,0.00025974,2]
[426756589,1782781036000,12883.5693723,0.000125,2]
[426756591,1782781042000,304.0,0.00029296,30]
[426756592,1782781049000,11557.69418292,7.6e-05,2]
[426756593,1782781056000,3095.28954601,0.00012,2]
[426756595,1782781060000,19604.95295858,0.000118,5]
[426756596,1782781061000,156.75289954,0.000248,120]
[426756599,1782781065000,423.0,0.0001,5]
[426756600,1782781069000,1000.0,0.00030137,30]
[426756601,1782781082000,1000.0,0.00030137,30]
[426756602,1782781104000,1015.0,0.00030137,30]
[426756679,1782781784000,-378.61748032,0.00012798,2]
[426756680,1782781785000,-197.32669795,0.00012798,2]
[426756693,1782781800000,197.32669795,0.0001251,2]
[426756719,1782781832000,-5901.2166292,0.00012798,2]
[426756718,1782781832000,-2379.95999999,0.00012798,2]
[426756717,1782781832000,-119.1727707,0.00012798,2]
[426756715,1782781832000,-9.45936761,0.0001267,2]
[426756714,1782781832000,-369.13622285,0.0001267,2]
[426756716,1782781832000,-300.0,0.00012797,2]
[426756814,1782781839000,-5022.0,0.00013,2]
[426756805,1782781839000,-9309.57060305,0.00012798,2]
[426756809,1782781839000,-275.18942878,0.00012999,2]
[426756807,1782781839000,-156.0,0.00012898,2]
[426756812,1782781839000,-500.0,0.00013,2]
[426756818,1782781839000,-408.6586623,0.00015,2]
[426756816,1782781839000,-605.51303458,0.000149,2]
[426756820,1782781839000,-157.019,0.00018128,2]
[426756822,1782781839000,-9679.23132371,0.0002,2]
[426756811,1782781839000,-10491.64020269,0.00013,2]
[426757300,1782781843000,-4618.65454512,0.0002,2]
[426757303,1782781843000,-180.10695934,0.000214,2]
[426757301,1782781843000,-9702.11413117,0.0002,2]
[426757305,1782781843000,-188.422172,0.00021715,2]
[426757304,1782781843000,-904.29202396,0.000215,2]
[426757307,1782781843000,-151.0,0.00021918,2]
[426757315,1782781843000,-151.0,0.00021918,2]
[426757311,1782781843000,-151.0,0.00021918,2]
[426757316,1782781843000,-155.2887,0.00021918,2]
[426757310,1782781843000,-218.727172,0.00021918,2]
[426757309,1782781843000,-160.997295,0.00021918,2]
[426757319,1782781843000,-151.0,0.00021918,2]
[426757313,1782781843000,-151.0,0.00021918,2]
[426757312,1782781843000,-151.0,0.00021918,2]
[426757326,1782781843000,-172.6295,0.00021918,2]
[426757324,1782781843000,-172.6295,0.00021918,2]
[426757325,1782781843000,-172.6295,0.00021918,2]
[426757321,1782781843000,-172.6295,0.00021918,2]
[426757323,1782781843000,-172.6295,0.00021918,2]
[426757320,1782781843000,-151.0,0.00021918,2]
[426757317,1782781843000,-151.0,0.00021918,2]
[426757318,1782781843000,-151.0,0.00021918,2]
[426757314,1782781843000,-151.0,0.00021918,2]
[426757322,1782781843000,-172.6295,0.00021918,2]
[426757329,1782781844000,-163.718574,0.00021922,2]
[426757328,1782781844000,-172.6295,0.00021918,2]
[426757327,1782781844000,-172.6295,0.00021918,2]
[426757330,1782781844000,-258.70548145,0.00022272,5]
[426757331,1782781844000,-176.52732029,0.000225,2]
[426757338,1782781844000,-469.63546402,0.0002464,3]
[426757332,1782781844000,-78.01673726,0.000225,2]
[426757334,1782781844000,-311.81349666,0.00023,2]
[426757336,1782781844000,-170.616,0.00024024,5]
[426757337,1782781844000,-163.718574,0.0002423,2]
[426757333,1782781844000,-381.98326274,0.00023,2]
[426757380,1782781847000,-781.98,0.0002464,3]
[426757377,1782781847000,-572.96453598,0.0002464,3]
[426757381,1782781847000,-151.0,0.0002464,2]
[426757379,1782781847000,-260.65,0.0002464,3]
[426757383,1782781847000,-172.6295,0.0002464,2]
[426757378,1782781847000,-521.3,0.0002464,3]
[426757384,1782781847000,-172.6295,0.0002464,2]
[426757385,1782781847000,-172.6295,0.0002464,2]
[426757386,1782781847000,-172.6295,0.0002464,2]
[426757382,1782781847000,-151.0,0.0002464,2]
[426757387,1782781847000,-2692.45392532,0.0002465,2]
[426757388,1782781847000,-1819.60658023,0.0002465,2]
[426757412,1782782019000,-434.38255135,0.0001261,2]
[426757414,1782782051000,2198.35577784,0.0001251,2]
[426757440,1782782744000,891.78,0.00012,2]
[426757568,1782783039000,-500.0,0.00024649,2]
[426757569,1782783039000,-500.0,0.00024649,2]
[426757567,1782783039000,-500.0,0.00024649,2]
[426757571,1782783039000,-500.0,0.00024649,2]
[426757573,1782783039000,-114606.98220179,0.0002465,2]
[426757572,1782783039000,-301.54707048,0.00024649,2]
[426757563,1782783039000,-500.0,0.00024649,2]
[426757579,1782783039000,-304.09,0.0002609,3]
[426757577,1782783039000,-300.0,0.0002609,5]
[426757574,1782783039000,-180.26440598,0.000247,2]
[426757578,1782783039000,-608.18,0.0002609,3]
[426757559,1782783039000,-500.0,0.00024649,2]
[426757565,1782783039000,-500.0,0.00024649,2]
[426757566,1782783039000,-500.0,0.00024649,2]
[426757561,1782783039000,-500.0,0.00024649,2]
[426757562,1782783039000,-500.0,0.00024649,2]
[426757564,1782783039000,-500.0,0.00024649,2]
[426757557,1782783039000,-500.0,0.00024649,2]
[426757555,1782783039000,-154.05439115,0.00024649,7]
[426757558,1782783039000,-500.0,0.00024649,2]
[426757556,1782783039000,-500.0,0.00024649,2]
[426757552,1782783039000,-16.56160885,0.00024649,7]
[426757549,1782783039000,-208.07535283,0.00022303,2]
[426757551,1782783039000,-500.0,0.00024648,2]
[426757550,1782783039000,-341.4383689,0.00024402,2]
[426757576,1782783039000,-300.0,0.0002609,4]
[426757560,1782783039000,-500.0,0.00024649,2]
[426757575,1782783039000,-180.26440598,0.0002599,2]
[426757570,1782783039000,-388.25716664,0.00024649,2]
[426757584,1782783039000,-163.718574,0.00026977,2]
[426757582,1782783039000,-64968.32637,0.000261,2]
[426757608,1782783039000,-151.0,0.00029275,7]
[426757607,1782783039000,-151.0,0.00029275,7]
[426757609,1782783039000,-151.0,0.00029275,7]
[426757606,1782783039000,-151.0,0.00029275,7]
[426757604,1782783039000,-151.0,0.00029275,7]
[426757603,1782783039000,-151.0,0.00029275,7]
[426757605,1782783039000,-192.038123,0.00029275,7]
[426757599,1782783039000,-500.0,0.00029275,2]
[426757600,1782783039000,-151.0,0.00029275,7]
[426757598,1782783039000,-9074.19421696,0.00029275,2]
[426757602,1782783039000,-151.0,0.00029275,7]
[426757594,1782783039000,-175.8,0.00029013,15]
[426757595,1782783039000,-160.0,0.00029036,3]
[426757601,1782783039000,-151.0,0.00029275,7]
[426757596,1782783039000,-1583.86823558,0.00029175,2]
[426757597,1782783039000,-4216.90474793,0.00029275,2]
[426757580,1782783039000,-152.04,0.0002609,3]
[426757581,1782783039000,-456.17,0.0002609,3]
[426757586,1782783039000,-608.18,0.0002746,3]
[426757587,1782783039000,-304.08,0.0002746,3]
[426757592,1782783039000,-256.4244965,0.00028172,2]
[426757590,1782783039000,-358.60124248,0.00028172,2]
[426757583,1782783039000,-186.0,0.00026853,2]
[426757588,1782783039000,-199.42233483,0.00028172,2]
[426757593,1782783039000,-400.26261251,0.00028172,2]
[426757591,1782783039000,-224.37143444,0.00028172,2]
[426757585,1782783039000,-1216.36,0.0002746,3]
[426757589,1782783039000,-388.8710607,0.00028172,2]
[426757655,1782783040000,-152.96,0.00029643,15]
[426757650,1782783040000,-3000.0,0.0002953,2]
[426757654,1782783040000,-152.96,0.00029593,15]
[426757649,1782783040000,-3000.0,0.0002952,2]
[426757648,1782783040000,-3000.0,0.0002951,2]
[426757639,1782783040000,-154.74,0.00029469,15]
[426757647,1782783040000,-151.0,0.000295,14]
[426757646,1782783040000,-151.0,0.000295,17]
[426757644,1782783040000,-3000.0,0.000295,2]
[426757641,1782783040000,-3000.0,0.0002948,2]
[426757653,1782783040000,-152.96,0.00029543,15]
[426757645,1782783040000,-151.0,0.000295,13]
[426757651,1782783040000,-228.756178,0.00029534,2]
[426757665,1782783040000,-80570.7160886,0.000298,2]
[426757656,1782783040000,-152.96,0.00029693,15]
[426757657,1782783040000,-151.0,0.000297,2]
[426757658,1782783040000,-151.0,0.000297,2]
[426757659,1782783040000,-151.0,0.000297,2]
[426757660,1782783040000,-151.0,0.000297,2]
[426757661,1782783040000,-151.0,0.000297,2]
[426757663,1782783040000,-152.96,0.00029743,15]
[426757664,1782783040000,-152.96,0.00029793,15]
[426757667,1782783040000,-151.0,0.000298,2]
[426757666,1782783040000,-51974.661096,0.000298,2]
[426757662,1782783040000,-151.0,0.000297,2]
[426757668,1782783040000,-151.0,0.000298,2]
[426757636,1782783040000,-3000.0,0.0002945,2]
[426757652,1782783040000,-3433.650434,0.0002954,2]
[426757638,1782783040000,-3000.0,0.0002946,2]
[426757625,1782783040000,-163.16,0.00029393,15]
[426757640,1782783040000,-3000.0,0.0002947,2]
[426757669,1782783040000,-151.0,0.000298,2]
[426757610,1782783040000,-151.0,0.00029275,7]
[426757615,1782783040000,-151.0,0.00029275,7]
[426757614,1782783040000,-151.0,0.00029275,7]
[426757613,1782783040000,-151.0,0.00029275,7]
[426757616,1782783040000,-151.0,0.00029275,7]
[426757612,1782783040000,-151.0,0.00029275,7]
[426757611,1782783040000,-173.036003,0.00029275,7]
[426757620,1782783040000,-154.69,0.00029319,15]
[426757619,1782783040000,-2173.07,0.00029294,7]
[426757617,1782783040000,-228.641441,0.00029275,7]
[426757618,1782783040000,-493.85124584,0.00029275,2]
[426757628,1782783040000,-154.69,0.00029419,15]
[426757635,1782783040000,-163.18,0.00029443,15]
[426757622,1782783040000,-163.16,0.00029343,15]
[426757621,1782783040000,-152.96,0.00029343,15]
[426757629,1782783040000,-3000.0,0.0002942,2]
[426757623,1782783040000,-154.69,0.00029369,15]
[426757626,1782783040000,-3000.0,0.000294,2]
[426757627,1782783040000,-3000.0,0.0002941,2]
[426757632,1782783040000,-194.66,0.00029433,2]
[426757634,1782783040000,-152.96,0.00029443,15]
[426757630,1782783040000,-3000.0,0.0002943,2]
[426757631,1782783040000,-194.65,0.00029433,2]
[426757633,1782783040000,-3000.0,0.0002944,2]
[426757643,1782783040000,-152.96,0.00029493,15]
[426757642,1782783040000,-3000.0,0.0002949,2]
[426757637,1782783040000,-152.14,0.00029454,3]
[426757624,1782783040000,-152.96,0.00029393,15]
[426757670,1782783040000,-154.7082799,0.000298,2]
[426757671,1782783040000,-152.96,0.00029843,15]
[426757672,1782783040000,-186.0,0.00029853,2]
[426757712,1782783040000,-500.0,0.00029863,7]
[426757711,1782783040000,-500.0,0.00029863,7]
[426757715,1782783040000,-500.0,0.00029863,7]
[426757714,1782783040000,-500.0,0.00029863,7]
[426757713,1782783040000,-500.0,0.00029863,7]
[426757717,1782783040000,-500.0,0.00029863,7]
[426757720,1782783040000,-500.0,0.00029863,7]
[426757716,1782783040000,-500.0,0.00029863,7]
[426757718,1782783040000,-500.0,0.00029863,7]
[426757719,1782783040000,-500.0,0.00029863,7]
[426757725,1782783040000,-500.0,0.00029863,7]
[426757721,1782783040000,-500.0,0.00029863,7]
[426757723,1782783040000,-583.91526967,0.00029863,7]
[426757734,1782783040000,-500.0,0.00029863,7]
[426757730,1782783040000,-500.0,0.00029863,7]
[426757727,1782783040000,-500.0,0.00029863,7]
[426757732,1782783040000,-500.0,0.00029863,7]
[426757728,1782783040000,-500.0,0.00029863,7]
[426757736,1782783040000,-500.0,0.00029863,7]
[426757738,1782783040000,-500.0,0.00029863,7]
[426757747,1782783040000,-500.0,0.00029863,7]
[426757749,1782783040000,-500.0,0.00029863,7]
[426757745,1782783040000,-500.0,0.00029863,7]
[426757741,1782783040000,-500.0,0.00029863,7]
[426757740,1782783040000,-500.0,0.00029863,7]
[426757751,1782783040000,-500.0,0.00029863,7]
[426757753,1782783040000,-500.0,0.00029863,7]
[426757708,1782783040000,-500.0,0.00029863,7]
[426757707,1782783040000,-500.0,0.00029863,7]
[426757743,1782783040000,-500.0,0.00029863,7]
[426757706,1782783040000,-500.0,0.00029863,7]
[426757709,1782783040000,-500.0,0.00029863,7]
[426757673,1782783040000,-608.90755985,0.00029863,7]
[426757675,1782783040000,-500.0,0.00029863,7]
[426757683,1782783040000,-500.0,0.00029863,7]
[426757681,1782783040000,-500.0,0.00029863,7]
[426757685,1782783040000,-500.0,0.00029863,7]
[426757679,1782783040000,-500.0,0.00029863,7]
[426757687,1782783040000,-500.0,0.00029863,7]
[426757686,1782783040000,-500.0,0.00029863,7]
[426757689,1782783040000,-500.0,0.00029863,7]
[426757688,1782783040000,-500.0,0.00029863,7]
[426757691,1782783040000,-221.3,0.00029863,7]
[426757690,1782783040000,-500.0,0.00029863,7]
[426757693,1782783040000,-505.57368028,0.00029863,7]
[426757677,1782783040000,-500.0,0.00029863,7]
[426757697,1782783040000,-500.0,0.00029863,7]
[426757695,1782783040000,-500.0,0.00029863,7]
[426757705,1782783040000,-500.0,0.00029863,7]
[426757702,1782783040000,-500.0,0.00029863,7]
[426757703,1782783040000,-500.0,0.00029863,7]
[426757701,1782783040000,-500.0,0.00029863,7]
[426757704,1782783040000,-500.0,0.00029863,7]
[426757698,1782783040000,-500.0,0.00029863,7]
[426757694,1782783040000,-500.0,0.00029863,7]
[426757700,1782783040000,-500.0,0.00029863,7]
[426757692,1782783040000,-500.0,0.00029863,7]
[426757710,1782783040000,-500.0,0.00029863,7]
[426757696,1782783040000,-500.0,0.00029863,7]
[426757699,1782783040000,-500.0,0.00029863,7]
[426757818,1782783041000,-500.0,0.00029863,7]
[426757814,1782783041000,-500.0,0.00029863,7]
[426757808,1782783041000,-500.0,0.00029863,7]
[426757825,1782783041000,-500.0,0.00029863,7]
[426757812,1782783041000,-500.0,0.00029863,7]
[426757816,1782783041000,-500.0,0.00029863,7]
[426757820,1782783041000,-500.0,0.00029863,7]
[426757822,1782783041000,-500.0,0.00029863,7]
[426757827,1782783041000,-500.0,0.00029863,7]
[426757810,1782783041000,-500.0,0.00029863,7]
[426757824,1782783041000,-594.16118873,0.00029863,7]
[426757851,1782783041000,-370.46252951,0.00029863,7]
[426757829,1782783041000,-500.0,0.00029863,7]
[426757835,1782783041000,-500.0,0.00029863,7]
[426757831,1782783041000,-500.0,0.00029863,7]
[426757849,1782783041000,-500.0,0.00029863,7]
[426757845,1782783041000,-500.0,0.00029863,7]
[426757843,1782783041000,-500.0,0.00029863,7]